[Event "Titled Tuesday Blitz October 25 Late 2022"]
[White "Camacho Campusano, David Daniel"]
[Black "Bongo Akanga Ndjila, Barthelemy"]
[WhiteFideId "6408885"]
[BlackFideId "10609431"]
[WhiteElo "2181"]
[BlackElo "1768"]
[Result "1-0"]
[Round "04"]
[TimeControl "180+1"]
[Date "2022.10.26"]
[WhiteClock "0:00:44"]
[BlackClock "0:01:44"]

1. e4 {[%clk 0:02:23]}  c6 {[%clk 0:02:58]} 2. Nf3 {[%clk 0:02:23]}  d5 {[%clk 0:02:59]} 3. Nc3 {[%clk 0:02:24]}  Bg4 {[%clk 0:02:58]} 4. h3 {[%clk 0:02:23]}  Bxf3 {[%clk 0:02:57]} 5. gxf3 {[%clk 0:02:24]}  e6 {[%clk 0:02:58]} 6. d4 {[%clk 0:02:24]}  Nf6 {[%clk 0:02:55]} 7. Bg5 {[%clk 0:02:23]}  Be7 {[%clk 0:02:55]} 8. h4 {[%clk 0:02:20]}  Nh5 {[%clk 0:02:54]} 9. Qd2 {[%clk 0:02:17]}  h6 {[%clk 0:02:53]} 10. Be2 {[%clk 0:02:16]}  hxg5 {[%clk 0:02:51]} 11. hxg5 {[%clk 0:02:14]}  Bxg5 {[%clk 0:02:51]} 12. f4 {[%clk 0:02:10]}  Bh4 {[%clk 0:02:47]} 13. O-O-O {[%clk 0:01:47]}  g6 {[%clk 0:02:46]} 14. f5 {[%clk 0:01:46]}  Bg5 {[%clk 0:02:44]} 15. f4 {[%clk 0:01:46]}  Bxf4 {[%clk 0:02:15]} 16. Qxf4 {[%clk 0:01:44]}  Nxf4 {[%clk 0:02:15]} 17. Rxh8+ {[%clk 0:01:44]}  Ke7 {[%clk 0:02:16]} 18. Rxd8 {[%clk 0:01:45]}  Nxe2+ {[%clk 0:02:15]} 19. Nxe2 {[%clk 0:01:40]}  Kxd8 {[%clk 0:02:15]} 20. fxg6 {[%clk 0:01:36]}  fxg6 {[%clk 0:02:15]} 21. exd5 {[%clk 0:01:36]}  exd5 {[%clk 0:02:11]} 22. Rg1 {[%clk 0:01:32]}  Nd7 {[%clk 0:02:11]} 23. Rxg6 {[%clk 0:01:32]}  Ke7 {[%clk 0:02:12]} 24. Kd2 {[%clk 0:01:28]}  Rf8 {[%clk 0:02:10]} 25. Rg7+ {[%clk 0:01:27]}  Kd6 {[%clk 0:02:07]} 26. Ke3 {[%clk 0:01:24]}  Re8+ {[%clk 0:02:05]} 27. Kd3 {[%clk 0:01:20]}  Rf8 {[%clk 0:02:05]} 28. Ke3 {[%clk 0:01:19]}  Re8+ {[%clk 0:02:05]} 29. Kd3 {[%clk 0:01:19]}  Re4 {[%clk 0:02:03]} 30. b3 {[%clk 0:01:14]}  Rh4 {[%clk 0:02:02]} 31. c4 {[%clk 0:01:11]}  dxc4+ {[%clk 0:02:01]} 32. bxc4 {[%clk 0:01:11]}  Rh3+ {[%clk 0:02:01]} 33. Kd2 {[%clk 0:01:08]}  Rh2 {[%clk 0:01:54]} 34. Ke3 {[%clk 0:01:06]}  Rh3+ {[%clk 0:01:53]} 35. Rg3 {[%clk 0:01:06]}  Rh2 {[%clk 0:01:50]} 36. Rg6+ {[%clk 0:00:59]}  Ke7 {[%clk 0:01:48]} 37. Rg7+ {[%clk 0:00:59]}  Ke6 {[%clk 0:01:49]} 38. Nf4+ {[%clk 0:00:54]}  Kf5 {[%clk 0:01:45]} 39. Rxd7 {[%clk 0:00:51]}  Rxa2 {[%clk 0:01:41]} 40. Rxb7 {[%clk 0:00:50]}  Ra3+ {[%clk 0:01:41]} 41. Nd3 {[%clk 0:00:50]}  a5 {[%clk 0:01:41]} 42. Rc7 {[%clk 0:00:49]}  a4 {[%clk 0:01:41]} 43. Rxc6 {[%clk 0:00:49]}  Ra1 {[%clk 0:01:42]} 44. d5 {[%clk 0:00:46]}  a3 {[%clk 0:01:43]} 45. Kd4 {[%clk 0:00:46]}  a2 {[%clk 0:01:44]} 46. Ra6 {[%clk 0:00:45]}  Rd1 {[%clk 0:01:44]} 47. Rxa2 {[%clk 0:00:44]} 1-0


[Site "https://www.chess.com"]

[Event "Titled Tuesday Blitz October 25 Late 2022"]
[White "Chigaev, Maksim"]
[Black "Lorenzo De La Riva, Lazaro"]
[WhiteFideId "4108116"]
[BlackFideId "2268809"]
[WhiteElo "2537"]
[BlackElo "2325"]
[Result "1-0"]
[Round "04"]
[TimeControl "180+1"]
[Date "2022.10.26"]
[WhiteClock "0:01:38"]
[BlackClock "0:00:53"]

1. Nf3 {[%clk 0:03:00]}  c5 {[%clk 0:02:58]} 2. c4 {[%clk 0:02:59]}  Nc6 {[%clk 0:02:56]} 3. Nc3 {[%clk 0:02:59]}  e5 {[%clk 0:02:48]} 4. e3 {[%clk 0:02:59]}  f5 {[%clk 0:02:47]} 5. d4 {[%clk 0:02:59]}  e4 {[%clk 0:02:47]} 6. d5 {[%clk 0:02:54]}  exf3 {[%clk 0:02:33]} 7. dxc6 {[%clk 0:02:54]}  dxc6 {[%clk 0:02:30]} 8. Qxd8+ {[%clk 0:02:53]}  Kxd8 {[%clk 0:02:29]} 9. gxf3 {[%clk 0:02:54]}  Nf6 {[%clk 0:02:19]} 10. b3 {[%clk 0:02:53]}  Be6 {[%clk 0:02:08]} 11. Bb2 {[%clk 0:02:53]}  Kc7 {[%clk 0:02:07]} 12. O-O-O {[%clk 0:02:49]}  Be7 {[%clk 0:02:05]} 13. Bd3 {[%clk 0:02:47]}  Rhe8 {[%clk 0:02:02]} 14. Ne2 {[%clk 0:02:45]}  g6 {[%clk 0:02:00]} 15. Nf4 {[%clk 0:02:44]}  Bf7 {[%clk 0:01:58]} 16. h4 {[%clk 0:02:39]}  Nd7 {[%clk 0:01:35]} 17. h5 {[%clk 0:02:28]}  g5 {[%clk 0:01:35]} 18. Bxf5 {[%clk 0:02:26]}  Bd6 {[%clk 0:01:30]} 19. Nd3 {[%clk 0:02:16]}  h6 {[%clk 0:01:12]} 20. Bxd7 {[%clk 0:02:12]}  Kxd7 {[%clk 0:01:13]} 21. Nxc5+ {[%clk 0:02:12]}  Kc7 {[%clk 0:01:14]} 22. Ne4 {[%clk 0:02:13]}  Be5 {[%clk 0:01:10]} 23. Bxe5+ {[%clk 0:01:39]}  Rxe5 {[%clk 0:01:11]} 24. Nf6 {[%clk 0:01:40]}  Rf5 {[%clk 0:00:53]} 25. Rd7+ {[%clk 0:01:38]} 1-0


[Site "https://www.chess.com"]

[Event "Titled Tuesday Blitz October 25 Late 2022"]
[White "Culum, Sanjin"]
[Black "Liu, Kelsey"]
[WhiteFideId "14420937"]
[BlackFideId "30944481"]
[WhiteElo "2180"]
[BlackElo "2362"]
[Result "1/2-1/2"]
[Round "04"]
[TimeControl "180+1"]
[Date "2022.10.26"]
[WhiteClock "0:00:09"]
[BlackClock "0:00:07"]

1. e4 {[%clk 0:03:00]}  c5 {[%clk 0:02:59]} 2. Nf3 {[%clk 0:03:00]}  e6 {[%clk 0:02:59]} 3. b3 {[%clk 0:02:56]}  b6 {[%clk 0:02:58]} 4. Bb2 {[%clk 0:02:56]}  Bb7 {[%clk 0:02:58]} 5. Nc3 {[%clk 0:02:56]}  Nc6 {[%clk 0:02:58]} 6. d4 {[%clk 0:02:54]}  cxd4 {[%clk 0:02:57]} 7. Nxd4 {[%clk 0:02:55]}  Nf6 {[%clk 0:02:54]} 8. Nxc6 {[%clk 0:02:55]}  Bxc6 {[%clk 0:02:43]} 9. Bd3 {[%clk 0:02:54]}  Bb4 {[%clk 0:02:43]} 10. Qe2 {[%clk 0:02:46]}  Qc7 {[%clk 0:02:35]} 11. O-O {[%clk 0:02:34]}  O-O {[%clk 0:02:17]} 12. e5 {[%clk 0:02:27]}  Nd5 {[%clk 0:02:08]} 13. Nxd5 {[%clk 0:02:25]}  Bxd5 {[%clk 0:02:04]} 14. c4 {[%clk 0:02:12]}  Bb7 {[%clk 0:02:00]} 15. Be4 {[%clk 0:02:12]}  Bxe4 {[%clk 0:01:58]} 16. Qxe4 {[%clk 0:02:13]}  d6 {[%clk 0:01:49]} 17. a3 {[%clk 0:01:58]}  d5 {[%clk 0:01:28]} 18. cxd5 {[%clk 0:01:57]}  Bd2 {[%clk 0:01:24]} 19. d6 {[%clk 0:01:44]}  Qc5 {[%clk 0:01:12]} 20. Kh1 {[%clk 0:01:31]}  Rac8 {[%clk 0:01:09]} 21. Rad1 {[%clk 0:01:07]}  Qc2 {[%clk 0:00:53]} 22. Qxc2 {[%clk 0:01:07]}  Rxc2 {[%clk 0:00:53]} 23. Bc1 {[%clk 0:01:07]}  Bc3 {[%clk 0:00:38]} 24. d7 {[%clk 0:00:59]}  Rd8 {[%clk 0:00:33]} 25. Bg5 {[%clk 0:00:59]}  f6 {[%clk 0:00:33]} 26. exf6 {[%clk 0:00:56]}  gxf6 {[%clk 0:00:34]} 27. Bh4 {[%clk 0:00:48]}  Kf7 {[%clk 0:00:34]} 28. Rd3 {[%clk 0:00:48]}  Ke7 {[%clk 0:00:24]} 29. Rfd1 {[%clk 0:00:48]}  Be5 {[%clk 0:00:18]} 30. f3 {[%clk 0:00:16]}  Rc7 {[%clk 0:00:18]} 31. g3 {[%clk 0:00:15]}  Rcxd7 {[%clk 0:00:18]} 32. Rxd7+ {[%clk 0:00:15]}  Rxd7 {[%clk 0:00:19]} 33. Rxd7+ {[%clk 0:00:15]}  Kxd7 {[%clk 0:00:20]} 34. Kg2 {[%clk 0:00:15]}  Bb2 {[%clk 0:00:20]} 35. a4 {[%clk 0:00:15]}  Kd6 {[%clk 0:00:20]} 36. Kf1 {[%clk 0:00:16]}  Kc5 {[%clk 0:00:21]} 37. Ke2 {[%clk 0:00:13]}  Kb4 {[%clk 0:00:21]} 38. Kd3 {[%clk 0:00:12]}  Kxb3 {[%clk 0:00:22]} 39. g4 {[%clk 0:00:08]}  Kxa4 {[%clk 0:00:20]} 40. Bf2 {[%clk 0:00:08]}  Kb3 {[%clk 0:00:13]} 41. h4 {[%clk 0:00:08]}  Be5 {[%clk 0:00:10]} 42. Be3 {[%clk 0:00:06]}  Bc7 {[%clk 0:00:09]} 43. f4 {[%clk 0:00:06]}  a5 {[%clk 0:00:08]} 44. g5 {[%clk 0:00:07]}  fxg5 {[%clk 0:00:08]} 45. fxg5 {[%clk 0:00:07]}  a4 {[%clk 0:00:06]} 46. Bd4 {[%clk 0:00:07]}  e5 {[%clk 0:00:04]} 47. Ba1 {[%clk 0:00:06]}  a3 {[%clk 0:00:01]} 48. h5 {[%clk 0:00:04]}  Bd6 {[%clk 0:00:02]} 49. g6 {[%clk 0:00:04]}  hxg6 {[%clk 0:00:03]} 50. hxg6 {[%clk 0:00:05]}  Bf8 {[%clk 0:00:03]} 51. Bxe5 {[%clk 0:00:06]}  b5 {[%clk 0:00:03]} 52. Kd2 {[%clk 0:00:05]}  b4 {[%clk 0:00:04]} 53. Kc1 {[%clk 0:00:06]}  a2 {[%clk 0:00:04]} 54. g7 {[%clk 0:00:06]}  Bxg7 {[%clk 0:00:05]} 55. Bxg7 {[%clk 0:00:07]}  Ka3 {[%clk 0:00:05]} 56. Bb2+ {[%clk 0:00:07]}  Kb3 {[%clk 0:00:05]} 57. Bf6 {[%clk 0:00:07]}  Ka3 {[%clk 0:00:06]} 58. Bb2+ {[%clk 0:00:07]}  Kb3 {[%clk 0:00:06]} 59. Bg7 {[%clk 0:00:08]}  Ka3 {[%clk 0:00:07]} 60. Bb2+ {[%clk 0:00:09]} 1/2-1/2


[Site "https://www.chess.com"]

[Event "Titled Tuesday Blitz October 25 Late 2022"]
[White "Dardha, Daniel"]
[Black "Sarana, Alexey"]
[WhiteFideId "240990"]
[BlackFideId "24133795"]
[WhiteElo "2813"]
[BlackElo "3028"]
[Result "1-0"]
[Round "04"]
[TimeControl "180+1"]
[Date "2022.10.26"]
[WhiteClock "0:00:39"]
[BlackClock "0:00:24"]

1. e4 {[%clk 0:03:00]}  c5 {[%clk 0:03:00]} 2. Nf3 {[%clk 0:03:01]}  d6 {[%clk 0:03:01]} 3. d4 {[%clk 0:03:00]}  cxd4 {[%clk 0:03:02]} 4. Nxd4 {[%clk 0:03:01]}  Nf6 {[%clk 0:03:01]} 5. Nc3 {[%clk 0:03:02]}  a6 {[%clk 0:03:01]} 6. Bg5 {[%clk 0:03:01]}  e6 {[%clk 0:03:01]} 7. f4 {[%clk 0:02:59]}  Qb6 {[%clk 0:03:01]} 8. Qd2 {[%clk 0:02:54]}  Qxb2 {[%clk 0:03:01]} 9. Rb1 {[%clk 0:02:54]}  Qa3 {[%clk 0:03:01]} 10. f5 {[%clk 0:02:42]}  Nc6 {[%clk 0:02:56]} 11. fxe6 {[%clk 0:02:37]}  Bxe6 {[%clk 0:02:57]} 12. Rxb7 {[%clk 0:02:34]}  Nd8 {[%clk 0:02:54]} 13. Nxe6 {[%clk 0:02:08]}  fxe6 {[%clk 0:02:51]} 14. Rb3 {[%clk 0:02:05]}  Qa5 {[%clk 0:02:45]} 15. Bd3 {[%clk 0:01:56]}  Be7 {[%clk 0:02:43]} 16. O-O {[%clk 0:01:56]}  O-O {[%clk 0:02:40]} 17. Kh1 {[%clk 0:01:51]}  Qc7 {[%clk 0:02:24]} 18. e5 {[%clk 0:01:48]}  dxe5 {[%clk 0:02:21]} 19. Bxf6 {[%clk 0:01:31]}  gxf6 {[%clk 0:02:02]} 20. Qh6 {[%clk 0:01:13]}  f5 {[%clk 0:01:58]} 21. Nd5 {[%clk 0:00:55]}  exd5 {[%clk 0:01:03]} 22. Bxf5 {[%clk 0:00:55]}  Rxf5 {[%clk 0:01:03]} 23. Rxf5 {[%clk 0:00:42]}  Nf7 {[%clk 0:00:23]} 24. Rg3+ {[%clk 0:00:39]}  Bg5 {[%clk 0:00:23]} 25. Rgxg5+ {[%clk 0:00:38]}  Nxg5 {[%clk 0:00:24]} 26. Rxg5+ {[%clk 0:00:39]} 1-0


[Site "https://www.chess.com"]

[Event "Titled Tuesday Blitz October 25 Late 2022"]
[White "Erenberg, Ariel"]
[Black "Gireman, Ja"]
[WhiteFideId "2811634"]
[BlackFideId "5043794"]
[WhiteElo "2416"]
[BlackElo "2153"]
[Result "1-0"]
[Round "04"]
[TimeControl "180+1"]
[Date "2022.10.26"]
[WhiteClock "0:00:29"]
[BlackClock "0:00:03"]

1. e4 {[%clk 0:03:00]}  e6 {[%clk 0:02:59]} 2. d4 {[%clk 0:03:00]}  d5 {[%clk 0:03:00]} 3. Nd2 {[%clk 0:02:57]}  c5 {[%clk 0:03:00]} 4. exd5 {[%clk 0:02:54]}  Qxd5 {[%clk 0:03:00]} 5. Ngf3 {[%clk 0:02:53]}  Nc6 {[%clk 0:03:00]} 6. Bc4 {[%clk 0:02:47]}  Qh5 {[%clk 0:03:00]} 7. Nb3 {[%clk 0:02:37]}  Nf6 {[%clk 0:02:53]} 8. O-O {[%clk 0:02:34]}  Bd7 {[%clk 0:01:58]} 9. dxc5 {[%clk 0:02:33]}  Bxc5 {[%clk 0:01:58]} 10. Nxc5 {[%clk 0:02:33]}  Qxc5 {[%clk 0:01:59]} 11. Bb3 {[%clk 0:02:33]}  O-O {[%clk 0:01:57]} 12. Be3 {[%clk 0:02:32]}  Qh5 {[%clk 0:01:54]} 13. c3 {[%clk 0:02:16]}  e5 {[%clk 0:01:47]} 14. h3 {[%clk 0:02:05]}  Rad8 {[%clk 0:01:00]} 15. Nd2 {[%clk 0:02:04]}  Bg4 {[%clk 0:00:31]} 16. Qe1 {[%clk 0:01:56]}  e4 {[%clk 0:00:14]} 17. hxg4 {[%clk 0:01:38]}  Nxg4 {[%clk 0:00:15]} 18. Bf4 {[%clk 0:01:39]}  Rfe8 {[%clk 0:00:13]} 19. Nxe4 {[%clk 0:01:28]}  Qg6 {[%clk 0:00:11]} 20. f3 {[%clk 0:01:26]}  Nge5 {[%clk 0:00:10]} 21. Qg3 {[%clk 0:01:23]}  Qf5 {[%clk 0:00:09]} 22. Rad1 {[%clk 0:01:20]}  Ng6 {[%clk 0:00:09]} 23. Rxd8 {[%clk 0:01:16]}  Rxd8 {[%clk 0:00:09]} 24. Bg5 {[%clk 0:01:13]}  Re8 {[%clk 0:00:09]} 25. Nd6 {[%clk 0:01:10]}  Qc5+ {[%clk 0:00:09]} 26. Kh1 {[%clk 0:01:08]}  Rf8 {[%clk 0:00:09]} 27. Re1 {[%clk 0:01:04]}  h6 {[%clk 0:00:09]} 28. Nxf7 {[%clk 0:00:42]}  Rxf7 {[%clk 0:00:09]} 29. Re8+ {[%clk 0:00:40]}  Nf8 {[%clk 0:00:09]} 30. Qf4 {[%clk 0:00:36]}  Ne5 {[%clk 0:00:03]} 31. Be7 {[%clk 0:00:29]} 1-0


[Site "https://www.chess.com"]

[Event "Titled Tuesday Blitz October 25 Late 2022"]
[White "Firouzja, Alireza"]
[Black "Djokic, Mihailo"]
[WhiteFideId "12573981"]
[BlackFideId "976440"]
[WhiteElo "2903"]
[BlackElo "2315"]
[Result "1-0"]
[Round "04"]
[TimeControl "180+1"]
[Date "2022.10.26"]
[WhiteClock "0:01:07"]
[BlackClock "0:00:16"]

1. d4 {[%clk 0:03:00]}  Nf6 {[%clk 0:02:59]} 2. c4 {[%clk 0:03:01]}  g6 {[%clk 0:02:58]} 3. Nf3 {[%clk 0:03:01]}  Bg7 {[%clk 0:02:58]} 4. g3 {[%clk 0:03:02]}  O-O {[%clk 0:02:58]} 5. Bg2 {[%clk 0:03:03]}  d6 {[%clk 0:02:58]} 6. O-O {[%clk 0:03:03]}  Nc6 {[%clk 0:02:59]} 7. Nc3 {[%clk 0:03:03]}  a6 {[%clk 0:02:59]} 8. b3 {[%clk 0:03:03]}  Rb8 {[%clk 0:02:59]} 9. Bb2 {[%clk 0:03:04]}  b5 {[%clk 0:02:57]} 10. cxb5 {[%clk 0:03:02]}  axb5 {[%clk 0:02:58]} 11. Rc1 {[%clk 0:03:03]}  b4 {[%clk 0:02:56]} 12. Na4 {[%clk 0:03:03]}  Bd7 {[%clk 0:02:56]} 13. d5 {[%clk 0:03:01]}  Na5 {[%clk 0:02:55]} 14. Nd4 {[%clk 0:02:40]}  e6 {[%clk 0:02:42]} 15. e4 {[%clk 0:02:37]}  exd5 {[%clk 0:02:37]} 16. exd5 {[%clk 0:02:38]}  Re8 {[%clk 0:02:38]} 17. h3 {[%clk 0:02:32]}  h5 {[%clk 0:02:16]} 18. Qd3 {[%clk 0:02:23]}  Qc8 {[%clk 0:01:37]} 19. Kh2 {[%clk 0:01:49]}  Bxa4 {[%clk 0:01:27]} 20. bxa4 {[%clk 0:01:48]}  Nd7 {[%clk 0:01:27]} 21. Qd2 {[%clk 0:01:37]}  Nc5 {[%clk 0:01:23]} 22. Ba1 {[%clk 0:01:36]}  Nxa4 {[%clk 0:00:58]} 23. f4 {[%clk 0:01:35]}  Nc5 {[%clk 0:00:41]} 24. f5 {[%clk 0:01:31]}  h4 {[%clk 0:00:34]} 25. fxg6 {[%clk 0:01:20]}  hxg3+ {[%clk 0:00:33]} 26. Kh1 {[%clk 0:01:20]}  fxg6 {[%clk 0:00:33]} 27. Qg5 {[%clk 0:01:20]}  Ne4 {[%clk 0:00:27]} 28. Qxg6 {[%clk 0:01:19]}  Nf2+ {[%clk 0:00:27]} 29. Rxf2 {[%clk 0:01:19]}  gxf2 {[%clk 0:00:24]} 30. Ne6 {[%clk 0:01:20]}  Qd7 {[%clk 0:00:22]} 31. Bxg7 {[%clk 0:01:18]}  Qf7 {[%clk 0:00:22]} 32. Qh6 {[%clk 0:01:19]}  Qf5 {[%clk 0:00:16]} 33. Bf6 {[%clk 0:01:08]}  Kf7 {[%clk 0:00:16]} 34. Qg7# {[%clk 0:01:07]} 1-0


[Site "https://www.chess.com"]

[Event "Titled Tuesday Blitz October 25 Late 2022"]
[White "Graif, William"]
[Black "Goltsev, Dmitry"]
[WhiteFideId "2609835"]
[BlackFideId "24176710"]
[WhiteElo "2205"]
[BlackElo "2257"]
[Result "0-1"]
[Round "04"]
[TimeControl "180+1"]
[Date "2022.10.26"]
[WhiteClock "0:00:10"]
[BlackClock "0:02:17"]

1. e4 {[%clk 0:02:55]}  e6 {[%clk 0:02:59]} 2. d4 {[%clk 0:02:53]}  d5 {[%clk 0:03:00]} 3. Be3 {[%clk 0:02:50]}  dxe4 {[%clk 0:02:59]} 4. f3 {[%clk 0:02:50]}  Nf6 {[%clk 0:02:59]} 5. fxe4 {[%clk 0:02:49]}  Nxe4 {[%clk 0:03:00]} 6. Nf3 {[%clk 0:02:49]}  Nc6 {[%clk 0:02:59]} 7. Bd3 {[%clk 0:02:47]}  Nd6 {[%clk 0:02:59]} 8. O-O {[%clk 0:02:42]}  Be7 {[%clk 0:02:59]} 9. Nc3 {[%clk 0:01:58]}  h6 {[%clk 0:02:58]} 10. Ne5 {[%clk 0:01:45]}  Nxe5 {[%clk 0:02:56]} 11. dxe5 {[%clk 0:01:45]}  Nf5 {[%clk 0:02:57]} 12. Bf2 {[%clk 0:01:23]}  O-O {[%clk 0:02:53]} 13. Qf3 {[%clk 0:01:19]}  c6 {[%clk 0:02:45]} 14. Qe4 {[%clk 0:01:10]}  h5 {[%clk 0:02:38]} 15. Rad1 {[%clk 0:00:44]}  Qa5 {[%clk 0:02:35]} 16. Qf3 {[%clk 0:00:37]}  g6 {[%clk 0:02:30]} 17. Rfe1 {[%clk 0:00:36]}  Qb4 {[%clk 0:02:24]} 18. Ne4 {[%clk 0:00:17]}  Qxb2 {[%clk 0:02:22]} 19. Rb1 {[%clk 0:00:16]}  Qxa2 {[%clk 0:02:21]} 20. Nf6+ {[%clk 0:00:16]}  Kg7 {[%clk 0:02:20]} 21. Be3 {[%clk 0:00:12]}  Rh8 {[%clk 0:02:17]} 22. h3 {[%clk 0:00:10]}  Qa5 {[%clk 0:02:17]} 23. g4 {[%clk 0:00:10]}  Nxe3 {[%clk 0:02:17]} 24. Qxe3 {[%clk 0:00:10]}  Bc5 {[%clk 0:02:17]} 0-1


[Site "https://www.chess.com"]

[Event "Titled Tuesday Blitz October 25 Late 2022"]
[White "Grot, Blazej"]
[Black "Curtis, John"]
[WhiteFideId "21835845"]
[BlackFideId "3200256"]
[WhiteElo "1739"]
[BlackElo "2203"]
[Result "1-0"]
[Round "04"]
[TimeControl "180+1"]
[Date "2022.10.26"]
[WhiteClock "0:00:07"]
[BlackClock "0:00:16"]

1. e4 {[%clk 0:02:56]}  c5 {[%clk 0:02:58]} 2. Nc3 {[%clk 0:02:52]}  d6 {[%clk 0:02:59]} 3. d4 {[%clk 0:02:50]}  cxd4 {[%clk 0:02:59]} 4. Qxd4 {[%clk 0:02:51]}  Bd7 {[%clk 0:02:57]} 5. b3 {[%clk 0:02:50]}  Nf6 {[%clk 0:02:53]} 6. Bb2 {[%clk 0:02:50]}  g6 {[%clk 0:02:53]} 7. O-O-O {[%clk 0:02:50]}  Bg7 {[%clk 0:02:53]} 8. Kb1 {[%clk 0:02:50]}  O-O {[%clk 0:02:52]} 9. f3 {[%clk 0:02:50]}  Be6 {[%clk 0:02:52]} 10. Qd2 {[%clk 0:02:46]}  a6 {[%clk 0:02:41]} 11. g4 {[%clk 0:02:46]}  b5 {[%clk 0:02:40]} 12. h4 {[%clk 0:02:45]}  b4 {[%clk 0:02:39]} 13. Na4 {[%clk 0:02:45]}  a5 {[%clk 0:02:31]} 14. h5 {[%clk 0:02:44]}  Nbd7 {[%clk 0:02:25]} 15. hxg6 {[%clk 0:02:42]}  fxg6 {[%clk 0:02:19]} 16. g5 {[%clk 0:02:40]}  Nh5 {[%clk 0:02:17]} 17. Bxg7 {[%clk 0:02:25]}  Kxg7 {[%clk 0:02:17]} 18. Ne2 {[%clk 0:02:10]}  Rxf3 {[%clk 0:02:06]} 19. Nd4 {[%clk 0:02:10]}  Bg4 {[%clk 0:02:05]} 20. Rg1 {[%clk 0:01:53]}  Rg3 {[%clk 0:01:38]} 21. Rxg3 {[%clk 0:01:09]}  Nxg3 {[%clk 0:01:33]} 22. Qg2 {[%clk 0:01:09]}  Nf8 {[%clk 0:01:12]} 23. Re1 {[%clk 0:00:35]}  Nxf1 {[%clk 0:00:54]} 24. Qxg4 {[%clk 0:00:27]}  e5 {[%clk 0:00:36]} 25. Nf3 {[%clk 0:00:18]}  Qd7 {[%clk 0:00:21]} 26. Qh4 {[%clk 0:00:18]}  Qf7 {[%clk 0:00:18]} 27. Rxf1 {[%clk 0:00:17]}  d5 {[%clk 0:00:17]} 28. exd5 {[%clk 0:00:12]}  Qxd5 {[%clk 0:00:17]} 29. Nb6 {[%clk 0:00:10]}  Qb5 {[%clk 0:00:17]} 30. Nc4 {[%clk 0:00:08]}  a4 {[%clk 0:00:16]} 31. Nfxe5 {[%clk 0:00:07]}  Ra7 {[%clk 0:00:17]} 32. Qh6+ {[%clk 0:00:06]}  Kg8 {[%clk 0:00:16]} 33. Rxf8# {[%clk 0:00:07]} 1-0


[Site "https://www.chess.com"]

[Event "Titled Tuesday Blitz October 25 Late 2022"]
[White "Gunduz, Umut Erdem"]
[Black "Forgacs, Attila Jr."]
[WhiteFideId "6381383"]
[BlackFideId "773654"]
[WhiteElo "2182"]
[BlackElo "2168"]
[Result "1-0"]
[Round "04"]
[TimeControl "180+1"]
[Date "2022.10.26"]
[WhiteClock "0:01:55"]
[BlackClock "0:01:05"]

1. e4 {[%clk 0:03:00]}  e5 {[%clk 0:03:00]} 2. Nf3 {[%clk 0:03:01]}  Nc6 {[%clk 0:03:00]} 3. Bb5 {[%clk 0:03:01]}  a6 {[%clk 0:03:00]} 4. Ba4 {[%clk 0:03:01]}  Nf6 {[%clk 0:03:00]} 5. O-O {[%clk 0:03:01]}  Be7 {[%clk 0:03:01]} 6. Re1 {[%clk 0:03:01]}  b5 {[%clk 0:03:01]} 7. Bb3 {[%clk 0:03:00]}  O-O {[%clk 0:03:02]} 8. h3 {[%clk 0:02:56]}  Bb7 {[%clk 0:03:02]} 9. d3 {[%clk 0:02:55]}  d5 {[%clk 0:02:59]} 10. Nbd2 {[%clk 0:02:54]}  dxe4 {[%clk 0:02:31]} 11. dxe4 {[%clk 0:02:55]}  Bc5 {[%clk 0:02:22]} 12. c3 {[%clk 0:02:52]}  Qe7 {[%clk 0:02:12]} 13. Nf1 {[%clk 0:02:49]}  Rad8 {[%clk 0:02:11]} 14. Qe2 {[%clk 0:02:49]}  Bb6 {[%clk 0:02:06]} 15. Ng3 {[%clk 0:02:46]}  g6 {[%clk 0:02:01]} 16. Nh4 {[%clk 0:02:41]}  Na5 {[%clk 0:01:57]} 17. Nhf5 {[%clk 0:02:22]}  gxf5 {[%clk 0:01:45]} 18. Nxf5 {[%clk 0:02:23]}  Qc5 {[%clk 0:01:32]} 19. Bg5 {[%clk 0:02:09]}  Nxe4 {[%clk 0:01:17]} 20. Be3 {[%clk 0:02:09]}  Qc6 {[%clk 0:01:12]} 21. Qg4+ {[%clk 0:01:56]}  Qg6 {[%clk 0:01:10]} 22. Ne7+ {[%clk 0:01:56]}  Kg7 {[%clk 0:01:10]} 23. Nxg6 {[%clk 0:01:57]}  fxg6 {[%clk 0:01:10]} 24. Bxb6 {[%clk 0:01:57]}  Nxf2 {[%clk 0:01:05]} 25. Bxf2 {[%clk 0:01:55]} 1-0


[Site "https://www.chess.com"]

[Event "Titled Tuesday Blitz October 25 Late 2022"]
[White "Guz, Ari"]
[Black "Gedgafov, Chamal"]
[WhiteFideId "2825759"]
[BlackFideId "34130621"]
[WhiteElo "2205"]
[BlackElo "2067"]
[Result "1-0"]
[Round "04"]
[TimeControl "180+1"]
[Date "2022.10.26"]
[WhiteClock "0:00:26"]
[BlackClock "0:01:01"]

1. e4 {[%clk 0:03:00]}  e6 {[%clk 0:02:59]} 2. Qe2 {[%clk 0:03:00]}  e5 {[%clk 0:02:56]} 3. Nf3 {[%clk 0:03:00]}  Nc6 {[%clk 0:02:57]} 4. c3 {[%clk 0:02:59]}  Bc5 {[%clk 0:02:53]} 5. Nxe5 {[%clk 0:02:57]}  Nxe5 {[%clk 0:02:49]} 6. d4 {[%clk 0:02:57]}  Bd6 {[%clk 0:02:47]} 7. dxe5 {[%clk 0:02:57]}  Bxe5 {[%clk 0:02:48]} 8. f4 {[%clk 0:02:57]}  Bf6 {[%clk 0:02:47]} 9. Be3 {[%clk 0:02:54]}  d6 {[%clk 0:02:47]} 10. Nd2 {[%clk 0:02:52]}  Ne7 {[%clk 0:02:47]} 11. O-O-O {[%clk 0:02:52]}  Be6 {[%clk 0:02:46]} 12. g4 {[%clk 0:02:52]}  g6 {[%clk 0:02:45]} 13. f5 {[%clk 0:02:51]}  Bd7 {[%clk 0:02:44]} 14. Bg2 {[%clk 0:02:43]}  a5 {[%clk 0:02:39]} 15. g5 {[%clk 0:02:38]}  Be5 {[%clk 0:02:37]} 16. Nf3 {[%clk 0:02:37]}  Nc6 {[%clk 0:02:37]} 17. Nxe5 {[%clk 0:02:30]}  Nxe5 {[%clk 0:02:36]} 18. h4 {[%clk 0:02:27]}  a4 {[%clk 0:02:32]} 19. Bd4 {[%clk 0:02:25]}  Qe7 {[%clk 0:02:31]} 20. f6 {[%clk 0:02:25]}  Qe6 {[%clk 0:02:29]} 21. Kb1 {[%clk 0:02:20]}  Qc4 {[%clk 0:02:27]} 22. Qxc4 {[%clk 0:02:12]}  Nxc4 {[%clk 0:02:28]} 23. e5 {[%clk 0:02:12]}  O-O-O {[%clk 0:02:22]} 24. Bd5 {[%clk 0:01:54]}  Be6 {[%clk 0:02:22]} 25. Bxe6+ {[%clk 0:01:54]}  fxe6 {[%clk 0:02:23]} 26. exd6 {[%clk 0:01:54]}  cxd6 {[%clk 0:02:15]} 27. b3 {[%clk 0:01:52]}  axb3 {[%clk 0:02:11]} 28. axb3 {[%clk 0:01:52]}  Na3+ {[%clk 0:02:11]} 29. Kb2 {[%clk 0:01:50]}  Nb5 {[%clk 0:02:12]} 30. Bb6 {[%clk 0:01:50]}  Rd7 {[%clk 0:02:12]} 31. Rhe1 {[%clk 0:01:45]}  e5 {[%clk 0:02:11]} 32. Re4 {[%clk 0:01:15]}  Re8 {[%clk 0:01:38]} 33. Ra4 {[%clk 0:01:10]}  Nc7 {[%clk 0:01:37]} 34. Rda1 {[%clk 0:01:07]}  Rf7 {[%clk 0:01:36]} 35. Rd1 {[%clk 0:01:00]}  Kd7 {[%clk 0:01:31]} 36. Rc4 {[%clk 0:00:54]}  Ne6 {[%clk 0:01:31]} 37. b4 {[%clk 0:00:47]}  h6 {[%clk 0:01:29]} 38. Kb3 {[%clk 0:00:38]}  hxg5 {[%clk 0:01:29]} 39. hxg5 {[%clk 0:00:37]}  Rh8 {[%clk 0:01:27]} 40. Bc5 {[%clk 0:00:33]}  Nxc5+ {[%clk 0:01:04]} 41. bxc5 {[%clk 0:00:33]}  Ke6 {[%clk 0:01:04]} 42. cxd6 {[%clk 0:00:27]}  Rd7 {[%clk 0:01:03]} 43. Rc7 {[%clk 0:00:26]}  Rhd8 {[%clk 0:01:03]} 44. c4 {[%clk 0:00:25]}  Rxd6 {[%clk 0:01:03]} 45. Rxd6+ {[%clk 0:00:25]}  Rxd6 {[%clk 0:01:04]} 46. Re7+ {[%clk 0:00:25]}  Kf5 {[%clk 0:01:01]} 47. f7 {[%clk 0:00:26]}  Rd8 {[%clk 0:01:01]} 48. Re8 {[%clk 0:00:26]} 1-0


[Site "https://www.chess.com"]